bitfinex-derivatives/quotes_ETHF0:USTF0_20250210
["timestamp","ask_amount","ask_price","bid_price","bid_amount"]
[1739169658226,0.5598,2630.9,2630.6,0.0057018]
[1739169658523,3.2078,2630.7,2630.6,0.0057018]
[1739169659931,7.18194764,2630.7,2630.6,0.0057018]
[1739169666632,3.97414764,2630.7,2630.6,0.0057018]
[1739169666840,7.18194764,2630.7,2630.6,0.0057018]
[1739169667034,3.2078,2630.7,2630.6,0.0057018]
[1739169667332,7.25963466,2630.7,2630.6,0.0057018]
[1739169667636,10.32192076,2630.7,2630.6,0.0057018]
[1739169667840,13.99606076,2630.7,2629.8,1.7375]
[1739169668035,3.2078,2630.2,2629.8,1.7375]
[1739169668240,0.6116,2630.1,2629.8,1.7375]
[1739169668435,4.62906278,2630.1,2629.8,1.7375]
[1739169668740,4.62906278,2630.1,2629.4,3.0622861]
[1739169669039,3.2078,2629.5,2629.3,0.6136]
[1739169673653,0.6126,2629.7,2629.3,0.6136]
[1739169682260,0.6079,2630.0,2629.3,0.6136]
[1739169682460,0.6036,2629.9,2629.3,0.6136]
[1739169682961,4.74182651,2629.9,2629.3,0.6136]
[1739169686553,3.2078,2629.8,2629.3,0.6136]
[1739169687461,3.2078,2629.5,2629.3,0.6136]
[1739169687850,7.53559296,2629.8,2629.3,0.6136]
[1739169688058,3.2078,2629.8,2629.3,0.6136]
[1739169688762,0.6036,2629.9,2629.3,0.6136]
[1739169688963,3.2078,2629.8,2629.3,0.6136]
[1739169689160,7.24786881,2629.8,2629.3,0.6136]
[1739169689359,7.81706881,2629.8,2629.3,0.6136]
[1739169690954,3.2078,2629.5,2629.3,0.6136]
[1739169691160,0.5792,2629.4,2629.2,0.5839]
[1739169693158,0.5792,2629.4,2629.1,0.0057018]
[1739169693361,3.2078,2629.2,2629.1,0.0057018]
[1739169693757,7.53760711,2629.2,2629.1,0.0057018]
[1739169696258,4.32980711,2629.2,2629.1,0.0057018]
[1739169697768,1.1868,2629.4,2629.1,0.0057018]
[1739169698068,4.16282337,2629.3,2629.1,0.0057018]
[1739169698767,0.5792,2629.4,2629.1,0.0057018]
[1739169708272,3.99139561,2629.3,2629.1,0.0057018]
[1739169708570,0.5792,2629.4,2629.1,0.0057018]
[1739169710067,4.29603027,2629.3,2629.1,0.0057018]
[1739169710268,3.2078,2629.2,2629.1,0.0057018]
[1739169710469,3.787,2629.2,2629.1,0.0057018]
[1739169710671,8.08303027,2629.2,2629.1,0.0057018]
[1739169711874,0.5792,2629.4,2629.1,3.0679879]
[1739169712172,0.5792,2629.4,2629.2,1.7948]
[1739169712876,0.5792,2629.4,2629.2,1.2069]
[1739169713370,3.2078,2629.3,2629.1,0.0057018]
[1739169713572,3.7765,2629.3,2629.1,0.0057018]
[1739169714073,4.00682486,2629.2,2629.1,0.00868575]
[1739169714870,3.7765,2629.3,2629.1,0.00868575]
[1739169714871,3.2078,2629.3,2629.1,0.00868575]
[1739169715071,0.5792,2629.4,2629.1,0.00868575]
[1739169715671,3.2078,2629.6,2629.1,3.07097185]
[1739169715870,3.2078,2629.6,2629.2,1.7533]
[1739169716983,3.2078,2629.6,2629.4,3.0622861]
[1739169717166,3.2078,2630.0,2629.4,6.2700861]
[1739169718474,3.2078,2630.0,2629.5,40.8]
[1739169718774,3.2078,2630.0,2629.7,3.0622861]
[1739169718976,3.2078,2630.0,2629.8,1.1164]
[1739169719172,3.2078,2630.0,2629.8,1.6962]
[1739169725076,0.0057018,2630.2,2629.8,1.6962]
[1739169727680,0.0057018,2630.2,2630.0,3.0622861]
[1739169730085,0.0057018,2630.2,2630.0,6.2700861]
[1739169731176,0.5705,2630.7,2630.0,6.2700861]
[1739169731381,0.5705,2630.7,2630.3,3.0622861]
[1739169731581,0.5705,2630.7,2630.4,1.1882]
[1739169731792,0.5705,2630.7,2630.4,1.7689]
[1739169732088,3.2078,2630.9,2630.6,3.0622861]
[1739169732284,0.0057018,2630.8,2630.6,3.0622861]
[1739169733891,0.0057018,2630.8,2630.7,40.8]
[1739169734396,0.5774,2631.1,2630.7,40.8]
[1739169734582,3.7915,2631.5,2631.0,3.0622861]
[1739169734782,0.6082,2631.4,2631.1,1.2064]
[1739169735086,4.7591952,2631.4,2631.1,1.2064]
[1739169738594,4.7591952,2631.4,2631.1,0.609]
[1739169740493,0.6082,2631.4,2631.1,0.609]
[1739169741187,0.6082,2631.4,2631.2,0.6096]
[1739169741893,0.6082,2631.4,2631.1,0.609]
[1739169743000,0.6082,2631.4,2630.9,0.6096]
[1739169743001,3.2078,2631.2,2630.9,0.6096]
[1739169743590,0.5555,2631.3,2630.9,0.6096]
[1739169744604,0.6082,2631.4,2631.1,3.2078]
[1739169744802,0.6082,2631.4,2631.3,3.0622861]
[1739169746705,0.0057018,2631.5,2631.3,3.0622861]
[1739169747006,0.0057018,2631.5,2631.4,1.7017]
[1739169749205,0.0057018,2631.5,2631.3,3.0622861]
[1739169750498,0.0057018,2631.5,2631.4,1.1598]
[1739169750698,0.0057018,2631.5,2631.4,1.7156]
[1739169752205,0.0057018,2631.5,2631.4,1.1598]
[1739169755205,0.0057018,2631.5,2631.0,3.0622861]
[1739169755206,3.2135018,2631.5,2631.0,3.0622861]
[1739169755504,0.6081,2631.4,2631.0,4.2022861]
[1739169756014,0.5532,2631.3,2631.0,4.2022861]
[1739169756413,0.5532,2631.3,2631.0,3.0622861]
[1739169767117,3.761,2631.3,2630.8,1.207]
[1739169771524,3.761,2631.3,2631.0,3.0622861]
[1739169771724,3.761,2631.3,2631.1,0.5961]
[1739169772822,0.5532,2631.3,2631.1,0.5961]
[1739169773129,0.0057018,2631.5,2631.2,41.4048]
[1739169773321,0.0057018,2631.5,2631.3,3.6257861]
[1739169773721,0.0057018,2631.5,2631.3,0.5635]
[1739169773925,0.5649018,2631.5,2631.3,0.5635]
[1739169774131,0.5649018,2631.5,2631.2,41.4048]
[1739169775023,0.5649018,2631.5,2631.1,1.1937]
[1739169775822,3.2078,2631.3,2630.8,41.4143]
[1739169776026,3.2078,2631.3,2630.8,42.5897]
[1739169776222,3.2078,2631.3,2630.8,1.7897]
[1739169778022,3.2078,2631.0,2630.8,1.1754]
[1739169778219,0.6112,2630.9,2630.5,0.5655018]
[1739169778428,0.6112,2630.9,2630.5,1.7004018]
[1739169778429,1.1943,2630.9,2630.5,1.7004018]
[1739169778623,1.1943,2630.9,2630.5,42.5004018]
[1739169780134,0.6112,2630.9,2630.5,42.5004018]
[1739169780632,3.2078,2631.0,2630.7,3.0622861]
[1739169784138,0.0057018,2631.5,2630.8,45.7248]
[1739169784332,0.0057018,2631.5,2631.2,3.0622861]
[1739169784632,0.0057018,2631.5,2631.3,1.7189]
[1739169787534,0.0057018,2631.5,2631.3,1.1593]
[1739169787734,0.5910018,2631.5,2631.3,1.1593]
[1739169788540,0.0057018,2631.5,2631.3,1.1593]
[1739169793946,0.0057018,2631.5,2631.4,0.6072]
[1739169797243,0.0057018,2631.5,2630.9,3.0622861]
[1739169797439,3.2078,2631.3,2630.9,1.1548]
[1739169797638,8.89324944,2631.5,2630.9,1.1548]
[1739169797639,8.89324944,2631.5,2630.9,4.2170861]
[1739169797846,4.6396018,2631.5,2631.0,0.5838]
[1739169798148,4.09045967,2631.4,2631.0,0.5838]
[1739169798747,4.0751018,2631.5,2631.0,0.5838]
[1739169798946,3.4865018,2631.5,2631.0,0.5838]
[1739169800248,3.4865018,2631.5,2631.1,40.8]
[1739169800855,0.5725018,2631.5,2631.1,40.8]
[1739169804354,0.5725018,2631.5,2631.2,3.0622861]
[1739169804556,0.5725018,2631.5,2631.3,1.1449]
[1739169805159,0.0057018,2631.5,2631.4,0.5878]
[1739169805753,0.0057018,2631.5,2631.4,41.3878]
[1739169810356,0.5603,2632.0,2631.4,42.14772]
[1739169810557,0.5603,2632.0,2631.8,6.2700861]
[1739169810756,0.5603,2632.0,2631.9,1.749]
[1739169812254,0.0057018,2632.2,2631.9,1.749]
[1739169812454,0.0057018,2632.2,2632.1,3.0622861]
[1739169814154,0.0057018,2632.2,2631.9,1.1760018]
[1739169815760,0.0057018,2632.2,2631.9,1.7715018]
[1739169816459,3.2078,2632.1,2631.9,0.0057018]
[1739169816761,0.6131,2632.0,2631.9,0.0057018]
[1739169816959,1.2146,2632.0,2631.5,4.2484861]
[1739169817167,1.2146,2632.0,2631.5,45.0484861]
[1739169818261,1.2146,2632.0,2631.5,45.0541879]
[1739169824861,1.2146,2632.0,2631.5,4.2541879]
[1739169829576,4.4224,2632.0,2631.5,4.2541879]
[1739169829869,4.4224,2632.0,2631.5,1.1919018]
[1739169837071,0.6015,2632.0,2631.5,1.1919018]
[1739169837277,0.6015,2632.0,2631.5,4.2541879]
[1739169843981,0.0057018,2632.2,2631.5,4.2541879]
[1739169844681,4.2738759,2632.1,2631.5,4.2541879]
[1739169851690,4.2738759,2632.1,2631.8,1.37234899]
[1739169851985,4.2738759,2632.1,2631.9,1.6856]
[1739169864993,4.8322759,2632.1,2631.9,1.6856]
[1739169868098,4.2738759,2632.1,2631.9,1.6856]
[1739169868395,3.2135018,2632.2,2631.9,1.6856]
[1739169871588,1.37234899,2632.1,2631.5,0.0057018]
[1739169871789,3.2078,2631.9,2631.5,1.1987018]
[1739169872293,0.6143,2631.8,2631.5,1.1987018]
[1739169873394,0.6143,2631.8,2631.6,1.37234899]
[1739169877594,0.6143,2631.8,2631.5,1.1987018]
[1739169877800,4.17953119,2631.7,2631.5,0.6123018]
[1739169878197,4.74293119,2631.7,2631.5,0.6123018]
[1739169878700,9.32308018,2631.7,2631.5,0.6123018]
[1739169878900,0.5655,2631.6,2631.5,0.6123018]
[1739169880300,4.17953119,2631.7,2631.5,0.6123018]
[1739169880602,0.6143,2631.8,2631.6,0.5669]
[1739169880805,0.6143,2631.8,2631.6,1.1796]
[1739169881697,0.6143,2631.8,2631.6,0.5669]
[1739169885197,3.2078,2631.7,2631.5,0.6123018]
[1739169885398,7.50407494,2631.7,2631.5,0.6123018]
[1739169885597,0.5774,2631.6,2631.5,0.0057018]
[1739169885799,0.5774,2631.6,2631.2,0.5685]
[1739169886000,4.58014899,2631.4,2631.2,0.5685]
[1739169886399,0.5855,2631.3,2631.2,0.5685]
[1739169886801,0.5855,2631.3,2630.8,1.96734899]
[1739169887004,0.5999,2631.2,2631.0,0.0057018]
[1739169887215,4.58014899,2631.1,2631.0,0.0057018]
[1739169887603,8.6537996,2631.1,2631.0,0.0057018]
[1739169889601,7.28145061,2631.1,2631.0,0.0057018]
[1739169903116,3.2078,2631.1,2631.0,0.0057018]
[1739169904817,6.86957112,2631.6,2631.0,0.0057018]
[1739169905016,6.86957112,2631.6,2631.0,0.5923018]
[1739169905314,4.15194931,2631.5,2631.1,0.5757]
[1739169905514,4.15194931,2631.5,2631.2,0.5727]
[1739169906312,3.2078,2631.6,2631.2,0.5727]
[1739169907818,3.2135018,2632.2,2631.5,6.27717112]
[1739169908014,3.2135018,2632.2,2631.6,1.1781]
[1739169908216,3.2135018,2632.2,2631.7,0.5797]
[1739169911115,6.28287292,2632.2,2631.7,0.5797]
[1739169911323,0.5812,2632.1,2631.7,0.5797]
[1739169911821,3.2078,2631.9,2631.7,0.5797]
[1739169912013,6.27717112,2631.9,2631.6,0.5757]
[1739169912314,4.30300614,2631.8,2631.3,1.1575]
[1739169912621,3.2078,2631.6,2631.3,1.1575]
[1739169912818,3.2078,2631.6,2631.3,0.5757]
[1739169913011,4.13494952,2631.5,2631.3,0.5757]
[1739169914619,4.13494952,2631.5,2631.1,0.5698]
[1739169919222,3.2078,2631.6,2631.1,0.5698]
[1739169919425,0.5812,2631.7,2631.2,3.06937112]
[1739169919725,0.6074,2632.0,2631.3,40.8]
[1739169920225,0.6115,2632.1,2631.3,40.8]
[1739169920427,4.18406002,2631.9,2631.3,40.8]
[1739169920721,3.2078,2631.9,2631.3,40.8]
[1739169921125,4.18406002,2631.8,2631.3,40.8]
[1739169921326,3.2078,2631.6,2631.1,0.5698]
[1739169921726,3.2078,2631.3,2631.1,0.5698]
[1739169923426,4.3306704,2631.2,2631.1,0.5698]
[1739169923625,4.3306704,2631.2,2631.0,0.0057018]
[1739169923823,4.9340704,2631.2,2631.0,0.0057018]
[1739169927730,4.3306704,2631.2,2631.0,0.0057018]
[1739169930740,2.914,2631.4,2631.0,0.0057018]
[1739169931235,2.914,2631.4,2631.1,40.8]
[1739169931438,0.5992,2631.5,2631.2,0.5746]
[1739169931633,0.5992,2631.5,2631.2,1.1558]
[1739169933234,4.056,2631.8,2631.2,1.1558]
[1739169933437,3.5019,2631.8,2631.2,4.22517112]
[1739169935942,0.5879,2631.8,2631.3,3.2078]
[1739169938443,0.5879,2631.8,2631.4,40.8]
[1739169939432,3.2078,2632.0,2631.5,3.06937112]
[1739169939644,3.2078,2632.0,2631.6,0.5544]
[1739169939844,3.2078,2632.0,2631.7,1.2229]
[1739169944542,0.5823,2631.9,2631.7,1.2229]
[1739169946445,4.17430847,2631.8,2631.7,1.2229]
[1739169948737,0.5823,2631.9,2631.7,1.2229]
[1739169949659,3.2078,2632.0,2631.7,1.2229]
[1739169950346,3.2078,2632.0,2631.8,40.8]
[1739169950546,0.0057018,2632.2,2631.8,43.86937112]
[1739169957648,0.0057018,2632.2,2631.8,3.06937112]
[1739169957852,3.2135018,2632.2,2631.7,1.2229]
[1739169958154,0.5839,2632.1,2631.7,1.2229]
[1739169958956,0.0057018,2632.2,2631.7,1.2229]
[1739169959353,0.0057018,2632.2,2631.8,3.06937112]
[1739169960947,0.0057018,2632.2,2631.7,1.2229]
[1739169964057,0.0057018,2632.2,2631.8,3.06937112]
[1739169964959,0.0057018,2632.2,2631.9,3.2078]
[1739169965351,0.0057018,2632.2,2632.0,0.5847]
[1739169965955,0.0057018,2632.2,2632.1,0.6039]
[1739169966259,0.0057018,2632.2,2632.1,1.1775]
[1739169967463,3.2135018,2632.2,2631.5,47.07717112]
[1739169967663,7.20990359,2632.2,2631.6,1.7778]
[1739169970969,7.20990359,2632.2,2631.6,1.1775]
[1739169973780,3.2078,2632.0,2631.6,1.1775]
[1739169974277,4.33508317,2631.9,2631.6,1.1775]
[1739169974479,4.90588317,2631.9,2631.6,1.1775]
[1739169974684,0.5948,2631.8,2631.6,1.1775]
[1739169978472,4.90588317,2631.9,2631.6,1.1775]
[1739169978681,0.5708,2631.9,2631.6,1.1775]
[1739169978878,2.914,2632.1,2631.6,1.1775]
[1739169979078,0.5861,2632.1,2631.6,1.1775]
[1739169979778,0.5861,2632.1,2631.8,3.06937112]
[1739169979983,2.9197018,2632.2,2631.8,3.06937112]
[1739169980181,2.9197018,2632.2,2631.9,0.5665]
[1739169980387,2.9197018,2632.2,2632.0,0.5827]
[1739169980686,0.0057018,2632.2,2632.1,0.5972]
[1739169983983,0.0057018,2632.2,2632.1,3.66657112]
[1739169988892,0.0057018,2632.2,2632.1,0.5972]
[1739169989086,0.0057018,2632.2,2632.0,0.5827]
[1739169991485,4.31568901,2632.1,2631.6,0.567]
[1739169991693,4.31568901,2632.1,2631.7,0.5872]
[1739169991988,0.5941,2632.0,2631.7,0.5872]
[1739169993192,0.0057018,2632.2,2631.7,0.5872]
[1739169994684,0.0057018,2632.2,2631.8,3.06937112]
[1739170007199,0.0057018,2632.2,2631.7,3.795]
[1739170007897,3.2135018,2632.2,2631.7,3.795]
[1739170008196,7.30182362,2632.1,2631.4,3.2078]
[1739170008496,7.30182362,2632.1,2631.4,3.7667]
[1739170008497,0.5715,2632.0,2631.4,3.7667]
[1739170008999,4.34352502,2631.9,2631.4,3.7667]
[1739170010295,0.5715,2632.0,2631.4,3.7667]
[1739170011396,0.5715,2632.0,2631.5,3.06937112]
[1739170011700,0.5715,2632.0,2631.6,0.5603]
[1739170011901,4.09287789,2631.9,2631.6,0.5603]
[1739170012101,0.5865,2631.8,2631.6,0.5603]
[1739170019708,4.32789432,2631.7,2631.4,0.5589]
[1739170019897,7.53569432,2631.7,2631.2,0.5945]
[1739170020098,0.5642,2631.6,2631.2,0.5945]
[1739170020501,3.98413408,2631.5,2631.2,0.5945]
[1739170020697,3.98413408,2631.5,2631.2,3.66387112]
[1739170021004,0.5642,2631.6,2631.2,3.66387112]
[1739170021605,2.914,2631.9,2631.2,3.66387112]
[1739170021805,0.6054,2631.8,2631.2,3.66387112]
[1739170022106,4.99515554,2631.8,2631.2,3.66387112]
[1739170022604,4.99515554,2631.8,2631.3,3.2078]
[1739170022805,0.6054,2631.8,2631.3,3.2078]
[1739170023005,0.6054,2631.8,2631.4,0.6089]
[1739170023200,0.6054,2631.8,2631.5,0.5682]
[1739170023505,0.6054,2631.8,2631.6,0.5695]
[1739170024507,3.2078,2632.0,2631.6,0.5695]
[1739170024705,3.761,2632.0,2631.6,0.5695]
[1739170026212,4.57526589,2631.9,2631.6,0.5695]
[1739170027702,4.02086589,2631.9,2631.6,0.5695]
[1739170028010,3.761,2632.0,2631.6,0.5695]
[1739170028515,4.24565773,2631.9,2631.6,0.5695]
[1739170028902,3.761,2632.0,2631.6,0.5695]
[1739170030005,4.31571056,2631.9,2631.6,0.5695]
[1739170035010,3.761,2632.0,2631.6,0.5695]
[1739170035206,3.761,2632.0,2631.6,3.7773]
[1739170035207,3.2078,2632.0,2631.6,3.7773]
[1739170035805,0.0057018,2632.2,2631.8,3.06937112]
[1739170036215,0.0057018,2632.2,2631.9,1.138]
[1739170036415,0.0057018,2632.2,2632.0,0.5601]
[1739170039408,0.0057018,2632.2,2632.1,3.06937112]
[1739170044020,0.0057018,2632.2,2632.0,0.5601]
[1739170046518,0.0057018,2632.2,2632.1,3.06937112]
[1739170047420,0.0057018,2632.2,2632.1,43.86937112]
[1739170048123,0.0057018,2632.2,2632.1,44.16966015]
[1739170049319,0.0057018,2632.2,2632.1,43.86937112]
[1739170049723,0.0057018,2632.2,2632.1,50.62910112]
[1739170049922,0.5948,2632.7,2632.4,3.06937112]
[1739170050122,3.2078,2632.8,2632.5,1.719]
[1739170050516,0.572,2633.0,2632.7,3.06937112]
[1739170052625,0.0057018,2633.1,2632.7,3.06937112]
[1739170052928,0.0057018,2633.1,2632.9,3.2078]
[1739170053128,0.0057018,2633.1,2633.0,1.1591]
[1739170053426,0.0057018,2633.1,2633.0,1.7188]
[1739170055420,0.0057018,2633.1,2633.0,4.78817112]
[1739170058829,0.5976,2634.0,2633.1,0.75942]
[1739170059129,0.6006,2633.8,2633.7,3.06937112]
[1739170059323,0.6006,2633.8,2633.7,4.19187112]
[1739170059632,0.6006,2633.8,2633.7,4.76767112]
[1739170060128,0.0057018,2634.0,2633.7,4.76767112]
[1739170060528,0.0057018,2634.0,2633.9,3.06937112]
[1739170060929,0.6048018,2634.0,2633.9,3.06937112]
[1739170061529,0.6048018,2634.0,2633.9,6.27717112]
[1739170061732,0.6048018,2634.0,2633.9,3.06937112]
[1739170062527,0.6048018,2634.0,2633.6,3.2078]
[1739170062729,0.6048018,2634.0,2633.5,1.1305]
[1739170063833,0.6048018,2634.0,2633.6,6.27717112]
[1739170065139,0.6048018,2634.0,2633.7,0.5568]
[1739170065538,0.6048018,2634.0,2633.6,6.27717112]
[1739170065834,1.1736018,2634.0,2633.6,6.27717112]
[1739170066930,1.1736018,2634.0,2633.6,3.06937112]
[1739170067726,0.6048018,2634.0,2633.6,6.27717112]
[1739170071240,7.57040732,2633.9,2633.3,3.2078]
[1739170071638,4.36260732,2633.9,2633.3,6.27717112]
[1739170071834,4.36260732,2633.9,2633.4,0.6143]
[1739170072141,4.36260732,2633.9,2633.5,0.6085]
[1739170073735,7.57040732,2633.9,2633.3,6.27717112]
[1739170073932,10.48440732,2633.9,2633.3,3.2078]
[1739170074138,3.2078,2633.6,2633.1,0.5929]
[1739170074335,1.7329,2633.5,2633.1,0.5929]
[1739170074528,5.73472081,2633.5,2633.1,0.5929]
[1739170075637,5.73472081,2633.5,2633.0,3.06937112]
[1739170076236,5.73472081,2633.5,2632.9,0.5563]
[1739170076432,5.73472081,2633.5,2632.8,41.3972]
[1739170077236,3.2078,2633.3,2632.8,41.3972]
[1739170077635,4.3542532,2633.2,2632.8,41.3972]
[1739170078135,0.5853,2633.1,2632.8,41.3972]
[1739170079033,0.6123,2633.0,2632.8,40.8]
[1739170079237,4.91070525,2633.0,2632.6,3.7847018]
[1739170079637,4.91070525,2633.0,2632.6,44.5847018]
[1739170080037,11.18787637,2633.0,2632.6,0.0057018]
[1739170080239,0.5979,2632.9,2632.6,0.0057018]
[1739170080741,4.02104192,2632.8,2632.6,0.0057018]
[1739170081142,4.34508197,2632.9,2632.6,0.0057018]
[1739170081439,3.2078,2633.0,2632.6,0.0057018]
[1739170081641,4.34508197,2632.9,2632.6,0.0057018]
[1739170082545,3.2078,2633.0,2632.6,0.0057018]
[1739170083451,3.2078,2633.0,2632.7,3.06937112]
[1739170083645,3.2078,2633.0,2632.8,0.6055]
[1739170083846,0.5853,2633.1,2632.8,1.1764]
[1739170084351,4.39133711,2633.0,2632.6,0.0057018]
[1739170084650,4.39133711,2633.0,2632.6,1.1638018]
[1739170084848,4.39133711,2633.0,2632.6,0.5929018]
[1739170085448,3.2078,2632.8,2632.6,0.0057018]
[1739170085637,0.5868,2632.7,2632.6,0.0057018]
[1739170085835,4.6764058,2632.7,2632.6,0.0057018]
[1739170087341,5.8414058,2632.7,2631.9,4.3945]
[1739170087536,5.2730058,2632.7,2632.1,3.06937112]
[1739170087740,4.6764058,2632.7,2632.1,43.86937112]
[1739170088541,4.6821076,2632.7,2632.1,43.87507292]
[1739170089341,0.5925018,2632.7,2632.4,3.06937112]
[1739170089550,0.5925018,2632.7,2632.5,1.7938]
[1739170090049,0.5925018,2632.7,2632.5,1.2097]
[1739170090256,4.61847704,2632.6,2632.1,43.87507292]
[1739170090558,0.5577,2632.5,2632.2,0.6005]
[1739170090845,0.5577,2632.5,2632.2,1.1846]
[1739170091044,4.05167704,2632.4,2632.3,0.5897]
[1739170091647,0.5925018,2632.7,2632.3,0.5897]
[1739170092049,0.5925018,2632.7,2632.4,3.06937112]
[1739170095147,0.5925018,2632.7,2632.3,0.5897]
[1739170095353,4.37557358,2632.6,2632.3,0.5897]
[1739170096455,0.5925018,2632.7,2632.3,0.5897]
[1739170099059,4.25792279,2632.6,2632.3,0.5897]
[1739170100756,0.5925018,2632.7,2632.3,0.5897]
[1739170104173,0.0057018,2632.7,2632.4,3.06937112]
[1739170104665,0.0057018,2632.7,2632.5,3.2078]
[1739170104862,0.0057018,2632.7,2632.6,0.5878]
[1739170105062,0.0057018,2632.7,2632.6,1.1783]
[1739170109866,0.0057018,2632.7,2632.4,3.06937112]
[1739170110068,0.0057018,2632.7,2632.4,3.67447112]
[1739170111760,7.30966095,2632.6,2632.1,0.0057018]
[1739170111971,3.2078,2632.3,2632.1,0.0057018]
[1739170112369,4.06453171,2632.2,2632.1,0.0057018]
[1739170112770,4.06453171,2632.4,2632.1,0.0057018]
[1739170112967,1.7646,2632.5,2632.1,0.0057018]
[1739170113473,4.08818742,2632.4,2632.1,0.0057018]
[1739170114976,1.2102,2632.5,2632.1,0.0057018]
[1739170116471,0.6055,2632.5,2632.1,3.07507292]
[1739170116676,0.6055,2632.5,2632.2,1.1181]
[1739170116677,3.8133,2632.5,2632.2,1.1181]
[1739170117273,0.6055,2632.5,2632.2,1.1181]
[1739170118273,3.8133,2632.5,2632.2,1.1181]
[1739170118477,3.8133,2632.5,2632.1,0.0057018]
[1739170118478,0.5701,2632.4,2632.1,0.0057018]
[1739170120773,4.33547889,2632.3,2632.1,0.0057018]
[1739170122683,0.6055,2632.5,2632.1,0.0057018]
[1739170123082,3.99468486,2632.3,2632.1,0.0057018]
[1739170123279,4.57568486,2632.4,2632.1,0.0057018]
[1739170123585,0.581,2632.4,2632.1,0.0057018]
[1739170123779,4.34736799,2632.3,2632.1,0.0057018]
[1739170123979,0.5879,2632.2,2632.1,0.0057018]
[1739170124483,4.98945502,2632.2,2632.1,0.0057018]
[1739170127380,0.6055,2632.5,2632.1,0.0057018]
[1739170127784,4.18599272,2632.4,2632.1,0.0057018]
[1739170128584,0.6055,2632.5,2632.1,3.07507292]
[1739170128781,0.6055,2632.5,2632.2,0.563]
[1739170128983,0.6055,2632.5,2632.3,1.1891]
[1739170131581,0.0057018,2632.7,2632.3,1.1891]
[1739170136294,0.0057018,2632.7,2632.4,3.06937112]
[1739170137689,3.2078,2633.3,2632.5,3.2078]
[1739170137895,3.2078,2633.3,2633.0,3.06937112]
[1739170138195,3.2078,2633.3,2633.1,1.7191]
[1739170138687,0.5603,2633.8,2633.2,40.8]
[1739170138892,0.0057018,2633.5,2633.2,40.8]
[1739170140390,0.0057018,2633.5,2633.3,3.06937112]
[1739170140692,3.2078,2634.0,2633.3,3.06937112]
[1739170141891,0.0037644,2633.9,2633.3,3.06937112]
[1739170142693,0.0037644,2633.9,2633.3,6.27717112]
[1739170143490,0.0037644,2633.9,2633.6,3.06937112]
[1739170143695,0.0037644,2633.9,2633.7,1.1371]
[1739170144000,0.0037644,2633.9,2633.8,0.5729]
[1739170146490,4.36499245,2633.9,2633.5,0.0057018]
[1739170146697,0.5721,2633.8,2633.5,0.0057018]
[1739170153607,0.5721,2633.8,2633.5,1.1561018]
[1739170155903,0.5721,2633.8,2633.6,40.8]
[1739170157009,2.9177644,2633.9,2633.6,40.8]
[1739170157307,0.0037644,2633.9,2633.6,40.8]
[1739170157613,0.0037644,2633.9,2633.5,0.0057018]
[1739170158297,4.04969118,2633.8,2633.5,0.0057018]
[1739170158498,0.596,2633.7,2633.5,0.0057018]
[1739170158704,1.1857,2633.7,2633.5,0.0057018]
[1739170158905,4.04969118,2633.6,2633.5,0.0057018]
[1739170159904,4.3935,2633.7,2633.5,0.0057018]
[1739170160205,3.98741502,2633.6,2633.5,0.0057018]
[1739170161002,7.05678614,2633.6,2633.5,0.0057018]
[1739170161404,3.98741502,2633.6,2633.5,0.0057018]
[1739170167414,0.5897,2633.7,2633.5,0.0057018]
[1739170172313,0.0037644,2633.9,2633.5,0.0057018]
[1739170172516,0.6133644,2633.9,2633.5,0.0057018]
[1739170173323,0.0037644,2633.9,2633.6,3.06937112]
[1739170182037,0.0037644,2633.9,2633.7,3.2078]
[1739170182532,0.0037644,2633.9,2633.8,0.5767]
[1739170183438,0.5983,2634.5,2633.8,0.5767]
[1739170183640,0.5983,2634.5,2634.0,3.06937112]
[1739170186734,3.2078,2634.3,2633.9,1.1946]
[1739170187135,4.19455828,2634.2,2633.9,1.1946]
[1739170187543,0.6068,2634.1,2633.5,0.0057018]
[1739170187739,0.6068,2634.1,2633.6,0.5931]
[1739170188046,7.32698591,2634.0,2633.6,0.5931]
[1739170189847,4.11918591,2634.0,2633.6,0.5931]
[1739170190050,4.11918591,2634.0,2633.7,3.06937112]
[1739170190950,4.11918591,2634.0,2633.6,0.5931]
[1739170192549,0.6068,2634.1,2633.7,3.06937112]
[1739170193137,4.05503309,2634.0,2633.6,0.5931]
[1739170193746,7.26283309,2634.0,2633.6,0.5931]
[1739170193946,0.6128,2633.9,2633.6,0.5931]
[1739170194748,7.26283309,2634.0,2633.6,0.5931]
[1739170194938,0.5637,2633.9,2633.6,0.5931]
[1739170195342,0.5637,2633.9,2633.7,3.06937112]
[1739170195542,2.914,2634.2,2633.7,3.06937112]
[1739170195744,3.4777,2634.2,2633.7,3.06937112]
[1739170195953,3.4777,2634.2,2633.6,0.5931]
[1739170196138,4.70529867,2634.1,2633.6,0.5931]
[1739170196551,5.30259867,2634.1,2633.6,0.5931]
[1739170197552,3.2078,2634.0,2633.6,0.5931]
[1739170197748,3.2078,2634.0,2633.5,0.5948018]
[1739170197951,4.24204674,2633.9,2633.5,0.5948018]
[1739170198453,0.5906,2633.8,2633.5,0.5948018]
[1739170199659,0.5906,2633.8,2633.5,0.0057018]
[1739170199950,7.2079921,2633.7,2633.5,0.0057018]
[1739170200146,0.5965,2633.6,2633.5,0.0057018]
[1739170200348,3.2078,2633.7,2633.5,0.0057018]
[1739170202543,4.37107019,2633.6,2633.5,0.0057018]
[1739170204551,4.92687019,2633.6,2633.5,0.0057018]
[1739170205847,0.5906,2633.8,2633.5,0.0057018]
[1739170206159,0.5906,2633.8,2633.5,1.7662018]
[1739170206755,7.28874414,2633.7,2633.5,0.0057018]
[1739170207742,10.20274414,2633.7,2633.5,0.0057018]
[1739170208646,4.08094414,2633.7,2633.5,9.2135018]
[1739170208850,3.771,2634.6,2633.6,0.7593]
[1739170209043,0.5632,2634.6,2634.0,3.06937112]
[1739170209250,4.26427875,2634.5,2634.1,1.2031]
[1739170211148,0.5632,2634.6,2634.3,3.06937112]
[1739170212555,3.2078,2634.9,2634.3,3.06937112]
[1739170214444,0.5662,2635.0,2634.4,40.8]
[1739170214948,4.09747277,2634.9,2634.4,40.8]
[1739170215546,0.5662,2635.0,2634.4,40.8]